Cogmind - Beta 13 @@@ ROGUE MODE // 2024.04.08 @ 21:09:27 Player: SnowyImp Result: Destroyed by P-70 Sage with Tesla Rifle Performance ------------- Evolutions (6) 3000 Regions Visited (9) 1800 Robots Destroyed (51) 255 Value Destroyed (1833) 1833 Prototype IDs (8) 160 Alien Tech Used (0) 0 Bonus (358) 358 TOTAL SCORE: 7406 Bonus ------- High Alert Combat Kills 23 Follower Combat Kills 35 Aligned with FarCom 300 Cogmind --------- Core Integrity 0/1150 Matter 167/300 Energy 93/100 System Corruption 8% Temperature Cool (0) Movement Hovering (80) Location -4/Factory Parts ------- > --- POWER (1) -------- (None) > --- PROPULSION (6) --- Advanced VSS Leg Improved Gyrokinetic Inverter > --- UTILITY (10) ----- Enhanced Optical Array Hacking Suite Improved Component Analysis Suite > --- WEAPON (2) ------- Plasma Sword > --- INVENTORY (5) ---- (None) Peak State ------------ > --- POWER ------------ Light Angular Momentum Engine > --- PROPULSION ------- Improved Hover Unit Airjet Aerolev Unit Gravmag System VTOL Module Field Propulsion Drive > --- UTILITY ---------- Machine Analyzer Enhanced Optical Array Advanced ECM Suite Improved Reaction Control System Hacking Suite Hacking Suite System Shield System Shield > --- WEAPON ----------- Force Rifle Chainsword > --- INVENTORY -------- Micro Fission Core Cooled VTOL Module Hacking Suite System Shield Cooled Pulse Rifle [Rating: 67] Favorites ----------- Power Light Nuclear Core Engine Ion Engine Power Core Light Nuclear Core Propulsion Flight Unit Leg Aluminum Leg Wheel Armored Huge Wheel Hover Unit Improved Hover Unit Flight Unit Flight Unit Utility Hacking Suite Device Reaction Control System Processor Machine Analyzer Hackware Hacking Suite Protection Improved Light Armor Plating Weapon AWS/Thermal Energy Gun AWS/Thermal Energy Cannon HERF Cannon Impact Weapon Mace Slashing Weapon Chainsword Build | -11 -10 -10 -10 -9 -8 -7 -6 -5 -4 ------- Run | Yrd Mat Min Exi Min Mat Fac Fac Fac Fac Slots Evolved 12 | . . . . . 4 2 2 2 2 Power . | . . . . . . . . . . Propulsion 4 | . . . . . 2 1 1 . . Utility 8 | . . . . . 2 1 1 2 2 Weapon . | . . . . . . . . . . Parts Attached 111 | 4 1 . 1 3 24 27 6 15 30 Power 10 | 1 . . . . 2 1 1 2 3 Engine 4 | 1 . . . . 1 1 1 . . Core 6 | . . . . . 1 . . 2 3 Reactor . | . . . . . . . . . . Propulsion 45 | 2 . . . 2 12 12 2 5 10 Treads . | . . . . . . . . . . Leg 11 | 2 . . . . 6 . . . 3 Wheel 2 | . . . . . . 2 . . . Hover 15 | . . . . . 2 5 1 1 6 Flight 17 | . . . . 2 4 5 1 4 1 Utility 26 | . 1 . . . 4 7 2 4 8 Device 15 | . . . . . 1 4 1 1 8 Storage . | . . . . . . . . . . Processor 3 | . 1 . . . 1 . . 1 . Hackware 6 | . . . . . . 3 1 2 . Protection 2 | . . . . . 2 . . . . Artifact . | . . . . . . . . . . Weapon 30 | 1 . . 1 1 6 7 1 4 9 Energy Gun 21 | 1 . . 1 . 4 6 1 4 4 Energy Cannon 1 | . . . . . . . . . 1 Ballistic Gun . | . . . . . . . . . . Ballistic Cannon . | . . . . . . . . . . Launcher . | . . . . . . . . . . Special Weapon . | . . . . . . . . . . Impact Weapon 5 | . . . . 1 2 . . . 2 Slashing Weapon 3 | . . . . . . 1 . . 2 Piercing Weapon . | . . . . . . . . . . Special Melee Weapon . | . . . . . . . . . . Unidentified Prototypes 8 | . . . 1 . 1 2 . 1 3 Parts Lost 45 | . . . . . 2 6 1 12 24 Power 6 | . . . . . . 1 1 1 3 Propulsion 20 | . . . . . 2 5 . 7 6 Utility 11 | . . . . . . . . 1 10 Weapon 8 | . . . . . . . . 3 5 Highest Loss Streak 12 | . . . . . 2 3 1 10 12 To Critical Strikes 1 | . . . . . . . . . 1 Average Slot Usage (%) 70 | . 63 71 71 65 71 81 98 81 51 Engine 3 | . 14 14 14 14 2 . 5 2 . Core 2 | . . . . . 5 5 . 3 2 Leg 6 | . 28 28 28 12 12 . . . 1 Hover 6 | . . . . . . 10 25 13 3 Flight 9 | . . . . 15 14 18 13 5 3 Device 4 | . . . . . 5 9 6 4 2 Processor 11 | . 6 14 14 14 16 14 6 11 6 Hackware 12 | . . . . . . 7 26 28 23 Protection 1 | . . . . . 6 1 . . . Energy Gun 5 | . 14 14 14 6 7 6 6 4 1 Impact Weapon 1 | . . . . 2 . . . . 4 Slashing Weapon 1 | . . . . . . 1 6 3 . Naked Turns . | . . . . . . . . . . Heaviest Build 33 | 7 7 7 13 13 19 17 18 24 33 Greatest Support 54 | 20 20 20 20 20 50 29 32 32 54 Greatest Overweight (x) 3 | . . . . . 3 1 . 2 2 Average Overweight (x) . | . . . . . . . . . . Largest Inventory Capacity 5 | 5 5 5 5 5 5 5 5 5 5 Average Capacity 5 | 5 5 5 5 5 5 5 5 5 5 Most Carried 5 | 1 1 1 2 5 5 5 5 5 5 Average Carried 3 | . 1 1 1 4 4 4 4 3 3 Final Capacity 5 | 5 5 5 5 5 5 5 5 5 5 Final Carried 5 | 1 1 1 2 5 5 5 5 1 . Class Distribution -------------------- 33% | Mutant 18% | Scavenger-Mutant 15% | Hacker-Mutant 10% | Wizard-Scout 9% | Scavenger-Sprinter 5% | Hacker-Ninja 3% | Hacker-Gladiator 3% | Hacker-Scout Dominant Class ---------------- Mutant | -10/Materials Mutant | -10/Mines Mutant | -10/Exiles Mutant | -9/Mines Scavenger-Mutant | -8/Materials Scavenger-Mutant | -7/Factory Hacker-Mutant | -6/Factory Hacker-Ninja | -5/Factory Hacker-Mutant | -4/Factory Resources | -11 -10 -10 -10 -9 -8 -7 -6 -5 -4 ----------- Run | Yrd Mat Min Exi Min Mat Fac Fac Fac Fac Matter Collected 978 | 138 . . . 102 220 210 138 70 100 Remotely . | . . . . . . . . . . Salvage Created 2163 | . . . . 93 892 592 177 268 141 Parts 129 | . . . . 2 59 41 8 13 6 Haulers Intercepted . | . . . . . . . . . . Recyclers Shooed . | . . . . . . . . . . Parts Field Recycled . | . . . . . . . . . . Retrieved Matter . | . . . . . . . . . . Parts Self-Destructed . | . . . . . . . . . . Prevented . | . . . . . . . . . . Kills | -11 -10 -10 -10 -9 -8 -7 -6 -5 -4 ------- Run | Yrd Mat Min Exi Min Mat Fac Fac Fac Fac Combat Hostiles Destroyed 42 | . . . . 6 13 12 3 4 4 Melee 12 | . . . . . . 4 3 2 3 Guns 29 | . . . . 6 13 8 . 2 . Classes Destroyed 11 | . . . . 2 8 1 . . . Worker 1 | . . . . . 1 . . . . Builder 3 | . . . . . 2 1 . . . Recycler 2 | . . . . . 2 . . . . Operator 3 | . . . . . 1 2 . . . Watcher 4 | . . . . . 3 . . 1 . Swarmer 11 | . . . . 2 4 3 . . 2 Grunt 14 | . . . . . 4 4 3 3 . Sentry 5 | . . . . . 4 1 . . . Hunter 4 | . . . . . 1 3 . . . Programmer 4 | . . . . . . 1 . 1 2 Assembled 4 | . . . . 4 . . . . . Best Kill Streak 10 | . . . . 4 10 4 1 1 2 Combat Bots Only 6 | . . . . 4 6 3 1 1 2 Max Kills in Single Turn 1 | . . . . 1 1 1 1 1 1 Gunslinging . | . . . . . . . . . . Exploded . | . . . . . . . . . . Melee 1 | . . . . . . 1 1 1 1 Uniques/NPCs Destroyed . | . . . . . . . . . . Combat | -11 -10 -10 -10 -9 -8 -7 -6 -5 -4 -------- Run | Yrd Mat Min Exi Min Mat Fac Fac Fac Fac Hostile Shots Fired 508 | . 10 . . 13 36 74 20 73 282 Missed 195 | . 10 . . 5 10 41 10 12 107 Damage Taken 5371 | . . . . 156 312 457 191 1129 3126 Core 1830 | . . . . 70 63 85 79 375 1158 Absorbed by Shields 33 | . . . . . . 10 . . 23 Core Remaining (%) 83 | 100 . . . 72 88 87 90 62 . Volleys Fired 26 | . 1 . . . . . . 16 9 Largest 1 | . 1 . . . . . . 1 1 Hottest 88 | . 50 . . . . . . 69 88 Shots Fired 128 | . 1 . . 13 53 36 . 16 9 Gun 127 | . 1 . . 13 53 36 . 16 8 Cannon 1 | . . . . . . . . . 1 Launcher . | . . . . . . . . . . Special . | . . . . . . . . . . Kinetic . | . . . . . . . . . . Thermal 127 | . 1 . . 13 53 36 . 16 8 Explosive . | . . . . . . . . . . Electromagnetic 1 | . . . . . . . . . 1 Robot Hit Streak 19 | . . . . 5 19 14 . 15 2 Robot Miss Streak 4 | . 1 . . 2 4 3 . 1 3 Penetration Max . | . . . . . . . . . . Secondary Targets . | . . . . . . . . . . Autonomous 102 | . . . . 13 53 36 . . . Shots Hit Robots 160 | . . . . 9 44 41 15 31 20 Core Hits 77 | 1 . . . 6 25 23 5 11 6 Critical Kills . | . . . . . . . . . . Critical Parts Destroyed 6 | . . . . . 2 . . . 4 Critical Strikes 13 | . . . . . 2 1 4 1 5 Burn 1 | . . . . . . . . . 1 Smash 6 | . . . . . 2 . . . 4 Sever 6 | . . . . . . 1 4 1 . Melee Attacks 97 | . . . . 7 7 13 18 24 28 Impact 38 | . . . . 7 7 . . . 24 Slashing 59 | . . . . . . 13 18 24 4 Piercing . | . . . . . . . . . . Sneak Attacks 5 | . . . . . 3 1 . 1 . Combat Hostiles 1 | . . . . . . . . 1 . Follow-up Attacks 4 | . . . . . . . . . 4 Damage Inflicted 5358 | 3 . . . 289 1610 1302 603 926 625 Guns 2835 | . . . . 289 1261 914 . 305 66 Cannons 38 | . . . . . . . . . 38 Explosions 97 | . . . . . 97 . . . . Melee 2372 | . . . . . 252 388 603 621 508 Ramming 16 | 3 . . . . . . . . 13 Kinetic . | . . . . . . . . . . Thermal 2835 | . . . . 289 1261 914 . 305 66 Explosive . | . . . . . . . . . . Electromagnetic 135 | . . . . . 97 . . . 38 Impact 760 | . . . . . 252 . . . 508 Slashing 1612 | . . . . . . 388 603 621 . Piercing . | . . . . . . . . . . Highest Corruption 7 | . . . . . . 4 . 4 7 Average Corruption 3 | . . . . . . 1 . 2 3 Corruption Purged 4 | . . . . . . 4 . . . Corruption Blocked . | . . . . . . . . . . Effects 22 | . . . . . . 2 . 3 17 Message Errors 8 | . . . . . . . . 1 7 Matter Fused 3 | . . . . . . . . . 3 Heat Flow Errors 1 | . . . . . . 1 . . . Energy Discharges 5 | . . . . . . . . 1 4 Data Loss (minor) 3 | . . . . . . 1 . . 2 Data Loss (major) 1 | . . . . . . . . . 1 Alerts 1 | . . . . . . . . 1 . Overload Shots . | . . . . . . . . . . Overflow Damage 423 | . . . . . 222 . . 26 175 Projectiles . | . . . . . . . . . . Explosions . | . . . . . . . . . . Melee 423 | . . . . . 222 . . 26 175 Knockbacks 2 | . . . . . 1 . . . 1 Impact 2 | . . . . . 1 . . . 1 Kinetic . | . . . . . . . . . . Secondary . | . . . . . . . . . . Self-Inflicted Damage 41 | . . . . . 39 . . . 2 Shots 2 | . . . . . 2 . . . . Rammed 2 | . . . . . . . . . 2 Targets Rammed 7 | 2 . . . . . . . . 5 Kicked 5 | 2 . . . . . . . . 3 Crushed . | . . . . . . . . . . Highest Temperature 315 | . 10 . . 1 . 94 . 15 315 Average Temperature 52 | . 7 . . 1 . 51 . 13 60 Received Heat Transfer 1090 | . . . . 20 81 60 90 306 533 Siege Activations . | . . . . . . . . . . Robots Corrupted . | . . . . . . . . . . Combat Hostiles . | . . . . . . . . . . Parts Fried 6 | . . . . . 6 . . . . Impact Corruptions 16 | . . . . . 7 . . . 9 Robots Melted . | . . . . . . . . . . Combat Hostiles . | . . . . . . . . . . Parts Melted 6 | . . . . 1 4 . . 1 . Heat Transferred 3885 | . . . . 370 1591 1184 . 555 185 Parts Sabotaged . | . . . . . . . . . . Parts Stolen . | . . . . . . . . . . Parts Stripped . | . . . . . . . . . . Power Chain Reactions . | . . . . . . . . . . Alert | -11 -10 -10 -10 -9 -8 -7 -6 -5 -4 ------- Run | Yrd Mat Min Exi Min Mat Fac Fac Fac Fac Peak Influence 532 | . 30 11 . 83 532 462 288 278 436 Initial 221 | . . 11 . . 8 167 221 140 126 Average 217 | . 13 11 . 64 241 331 239 198 202 Maximum Alert Level 2 | . . . . . 2 2 1 1 2 Low Security (%) 48 | 100 100 100 . 100 49 13 . 54 61 Level 1 38 | . . . . . 19 62 100 45 28 Level 2 12 | . . . . . 30 23 . . 9 Level 3 . | . . . . . . . . . . Level 4 . | . . . . . . . . . . Level 5 . | . . . . . . . . . . High Security . | . . . . . . . . . . Max Security . | . . . . . . . . . . Squads Dispatched 11 | . 1 . . . 1 2 1 1 5 Investigation 4 | . . . . . . 1 1 1 1 Extermination 2 | . . . . . . 1 . . 1 Reinforcement 5 | . 1 . . . 1 . . . 3 Assault . | . . . . . . . . . . Garrison . | . . . . . . . . . . Intercept . | . . . . . . . . . . Searches Triggered . | . . . . . . . . . . Construction Impeded 1 | . . . . . 1 . . . . Haulers Reinforced . | . . . . . . . . . . Active Scanning Responses . | . . . . . . . . . . Cargo Convoy Interrupts . | . . . . . . . . . . Stealth | -11 -10 -10 -10 -9 -8 -7 -6 -5 -4 --------- Run | Yrd Mat Min Exi Min Mat Fac Fac Fac Fac Distress Signals 6 | . . . . . 1 . . 1 4 Communications Jammed . | . . . . . . . . . . Distress Signals . | . . . . . . . . . . Times Spotted 129 | . 5 . . 16 22 22 4 17 43 Peak Tracking Total 11 | . 5 . . 9 5 4 3 7 11 Tactical Retreats 25 | . . . . 2 1 5 . 5 12 Traps | -11 -10 -10 -10 -9 -8 -7 -6 -5 -4 ------- Run | Yrd Mat Min Exi Min Mat Fac Fac Fac Fac Traps Triggered 4 | . . . . . . 2 1 . 1 Indirectly . | . . . . . . . . . . Trap Hack Attempts . | . . . . . . . . . . Triggered . | . . . . . . . . . . Disarmed . | . . . . . . . . . . Reprogrammed . | . . . . . . . . . . Reused . | . . . . . . . . . . Traps Extracted . | . . . . . . . . . . Installed . | . . . . . . . . . . Triggered . | . . . . . . . . . . Machines | -11 -10 -10 -10 -9 -8 -7 -6 -5 -4 ---------- Run | Yrd Mat Min Exi Min Mat Fac Fac Fac Fac Machines Disabled 4 | . . . . . 4 . . . . Max in Single Turn 3 | . . . . . 3 . . . . Machines Repaired . | . . . . . . . . . . Machines Dismantled . | . . . . . . . . . . Machines Sabotaged . | . . . . . . . . . . Overloaded Fab Kills . | . . . . . . . . . . Hacking | -11 -10 -10 -10 -9 -8 -7 -6 -5 -4 --------- Run | Yrd Mat Min Exi Min Mat Fac Fac Fac Fac Machines Accessed 27 | . 1 . . 1 5 10 1 5 4 Terminals 23 | . 1 . . . 5 8 1 5 3 Fabricators 2 | . . . . . . 1 . . 1 Repair Stations . | . . . . . . . . . . Recycling Units . | . . . . . . . . . . Scanalyzers 1 | . . . . . . 1 . . . Garrison Access . | . . . . . . . . . . Total Hacks 109 | . 4 . . 1 15 29 6 19 35 Successful 45 | . 1 . . 1 4 13 3 5 18 Failed 63 | . 3 . . . 11 16 3 14 16 Catastrophic 15 | . . . . . 1 5 . 5 4 Database Lockouts 1 | . . . . . . . . . 1 Manual 94 | . 4 . 1 . 15 16 6 19 33 Terminals 92 | . 4 . . . 15 17 6 19 31 Fabricators 5 | . . . . . . 1 . . 4 Repair Stations . | . . . . . . . . . . Recycling Units . | . . . . . . . . . . Scanalyzers 11 | . . . . . . 11 . . . Garrison Access . | . . . . . . . . . . Terminal Hacks 22 | . . . . 1 3 2 2 3 11 Part Schematic 3 | . . . . . . 1 1 . 1 Open Door 1 | . . . . 1 . . . . . Level Access Points 3 | . . . . . 1 . . 1 1 Branch Access Points 5 | . . . . . 1 1 1 1 1 Emergency Access Points 1 | . . . . . . . . . 1 Terminal Index 2 | . . . . . 1 . . 1 . Fabricator Index 1 | . . . . . . . . . 1 Repair Station Index 1 | . . . . . . . . . 1 Scanalyzer Index 1 | . . . . . . . . . 1 Alert Level 1 | . . . . . . . . . 1 Unreport Threat 1 | . . . . . . . . . 1 Recall Reinforcements 2 | . . . . . . . . . 2 Fabricator Hacks 4 | . . . . . . 1 . . 3 Network Status 1 | . . . . . . 1 . . . Load Schematic 1 | . . . . . . . . . 1 Build 2 | . . . . . . . . . 2 Repair Station Hacks . | . . . . . . . . . . Recycling Unit Hacks . | . . . . . . . . . . Scanalyzer 8 | . . . . . . 8 . . . Insert Component 5 | . . . . . . 5 . . . Analyze 3 | . . . . . . 3 . . . Garrison Access Hacks . | . . . . . . . . . . Unauthorized Hacks 11 | . 1 . . . 1 2 1 2 4 Terminals 11 | . 1 . . . 1 2 1 2 4 Assimilate 1 | . . . . . . . . . 1 Botnet 10 | . 1 . . . 1 2 1 2 3 Fabricators . | . . . . . . . . . . Repair Stations . | . . . . . . . . . . Recycling Units . | . . . . . . . . . . Scanalyzers . | . . . . . . . . . . Garrison Access . | . . . . . . . . . . Data Cores Recovered 2 | . . . . . . 2 . . . Used 1 | . . . . . . 1 . . . Hacking Detections 25 | . 1 . . . 4 10 1 5 4 Full Trace Events 4 | . . . . . . 1 1 1 1 Feedback Events 1 | . . . . . . . . 1 . Corruption 1 | . . . . . . . . 1 . Feedback Blocked . | . . . . . . . . . . Robot Schematics Acquired . | . . . . . . . . . . Robots Built 3 | . . . . . . . . . 3 Authchips . | . . . . . . . . . . Time 93 | . . . . . . . . . 93 Total Robot Build Rating 21 | . . . . . . . . . 21 Part Schematics Acquired 6 | . . . . . . 4 1 . 1 Parts Built . | . . . . . . . . . . Authchips . | . . . . . . . . . . Time 47 | . . . . . . . . . 47 Total Part Build Rating . | . . . . . . . . . . Parts Repaired . | . . . . . . . . . . Time . | . . . . . . . . . . Parts Recycled . | . . . . . . . . . . Recycled Matter . | . . . . . . . . . . Retrieved Matter . | . . . . . . . . . . Retrieved Components . | . . . . . . . . . . Parts Scanalyzed 3 | . . . . . . 3 . . . Part Schematics Acquired 3 | . . . . . . 3 . . . Parts Damaged 1 | . . . . . . 1 . . . Bothacking | -11 -10 -10 -10 -9 -8 -7 -6 -5 -4 ------------ Run | Yrd Mat Min Exi Min Mat Fac Fac Fac Fac Used RIF Installer . | . . . . . . . . . . Robots Hacked . | . . . . . . . . . . Non-combat . | . . . . . . . . . . Combat . | . . . . . . . . . . Robot Hacks Applied . | . . . . . . . . . . Relay Couplers Released . | . . . . . . . . . . Fabnet Peak Effective % . | . . . . . . . . . . Robots Rewired . | . . . . . . . . . . Allies Hacked . | . . . . . . . . . . Hacks Repelled . | . . . . . . . . . . Allies | -11 -10 -10 -10 -9 -8 -7 -6 -5 -4 -------- Run | Yrd Mat Min Exi Min Mat Fac Fac Fac Fac Total Allies 7 | . . . . 4 . . . . 3 Largest Group 3 | . . . . 3 . . . . 3 Highest-Rated Group 141 | . . . . 40 . . . . 141 Highest-Rated Ally 47 | . . . . 31 . . . . 47 Total Orders . | . . . . . . . . . . Ally Attacks 16 | . . . . 10 . . . . 6 Total Damage 325 | . . . . 155 . . . . 170 Kills 1 | . . . . 1 . . . . . Allies Corrupted . | . . . . . . . . . . Allies Melted 1 | . . . . . . . . . 1 Intel | -11 -10 -10 -10 -9 -8 -7 -6 -5 -4 ------- Run | Yrd Mat Min Exi Min Mat Fac Fac Fac Fac Robot Analysis Total . | . . . . . . . . . . Derelict Logs Recovered 1 | . . . . 1 . . . . . Drone Launches . | . . . . . . . . . . Drone Recoveries . | . . . . . . . . . . Exploration | -11 -10 -10 -10 -9 -8 -7 -6 -5 -4 ------------- Run | Yrd Mat Min Exi Min Mat Fac Fac Fac Fac Turns Passed 3140 | 53 86 42 251 236 415 679 230 354 794 Spaces Moved 3909 | 39 69 36 208 343 450 1229 344 385 806 Core 71 | 3 . . . . . . . 5 63 Treads . | . . . . . . . . . . Legs 566 | 36 69 36 208 79 118 . . . 20 Wheels . | . . . . . . . . . . Hover 1311 | . . . . . . 515 344 350 102 Flight 1961 | . . . . 264 332 714 . 30 621 Fastest Speed 27 | 50 120 120 120 37 37 27 45 40 35 Average Speed 55 | 114 120 120 120 56 75 38 45 49 47 Slowest Speed 300 | 120 120 120 120 120 300 117 48 150 220 Overloaded Moves . | . . . . . . . . . . Propulsion Burnouts . | . . . . . . . . . . Robots Hopped 37 | . . . . 4 3 3 . 7 20 Cave-ins Triggered . | . . . . . . . . . . Exploration Rate (%) 29 | 3 27 11 58 78 49 26 8 12 26 Regions Visited 9 Branch Regions 3 Pre-discovered Areas 1 | . . . . 1 . . . . . Known Exits Taken 2 | . . . . . 1 . . 1 . Unknown Exits Taken 7 | 1 1 1 1 1 . 1 1 . . Scrap Searched 2 | . . . . 2 . . . . . Spaces Dug 14 | . . . . 7 3 . . . 4 Terrain Destroyed 26 | . . . . 10 10 2 . . 4 Melee 14 | . . . . 7 3 . . . 4 Projectile 12 | . . . . 3 7 2 . . . AOE . | . . . . . . . . . . Terrain Rammed . | . . . . . . . . . . Walls Destroyed . | . . . . . . . . . . Machines Disabled . | . . . . . . . . . . Actions | -11 -10 -10 -10 -9 -8 -7 -6 -5 -4 --------- Run | Yrd Mat Min Exi Min Mat Fac Fac Fac Fac Total 4678 | 45 70 35 209 372 512 1413 390 488 1144 Wait 466 | . . . . 17 16 92 14 48 279 Move 3828 | 38 68 35 207 334 443 1222 343 371 767 Hop 35 | . . . . 4 3 3 . 6 19 Pick Up 24 | 1 . . . 3 2 12 2 1 3 Fast Attach 78 | 4 1 . 1 . 17 21 3 7 24 Attach 24 | . . . . 1 5 5 1 6 6 Detach 19 | . . . 1 2 5 4 1 2 4 Swap 9 | . . . . 2 2 1 2 2 . Drop 52 | . . . . 2 12 24 3 5 6 Fire 26 | . 1 . . . . . . 16 9 Melee 91 | . . . . 7 7 13 18 24 22 Ram 2 | . . . . . . . . . 2 Kick 5 | 2 . . . . . . . . 3 Crush . | . . . . . . . . . . Escape Stasis 19 | . . . . . . 16 3 . . Rewire . | . . . . . . . . . . Trap . | . . . . . . . . . . Miscellaneous . | . . . . . . . . . . Route ------- -11/Scrapyard -10/Materials -10/Mines -10/Exiles -9/Mines -8/Materials (discovered 3 exits: *Fac x3) -7/Factory (discovered 3 exits: *Fac / *Low x2) -6/Factory (discovered 3 exits: *Fac / Low x2) -5/Factory (discovered 6 exits: *Fac x4 / Upp x2) -4/Factory (discovered 9 exits: Res x4 / *Upp x2 / Ext x2 / Arm) History --------- Turn | Location | Event 2 | -11/Scrapyard | Discovered new exit (range 16) 54 | -11/Scrapyard | Entered Materials 122 | -10/Materials | Discovered new exit (range 15) 140 | -10/Materials | Entered Mines 168 | -10/Mines | Received a Rocket Launcher from a helpful Derelict 176 | -10/Mines | Deemed a non-threat by the Exiles lab entrance 178 | -10/Mines | Discovered new exit (range 5) 182 | -10/Mines | Entered Exiles 210 | -10/Exiles | Met 8R-AWN 232 | -10/Exiles | Met EX-HEX 265 | -10/Exiles | Met EX-BIN 280 | -10/Exiles | Aligned with FarCom system 281 | -10/Exiles | Given EX-Vault access code 308 | -10/Exiles | Opened EX-Vault 314 | -10/Exiles | Found Prototype Energy Gun 314 | -10/Exiles | Identified AWS/Thermal 335 | -10/Exiles | Build established: Mutant 338 | -10/Exiles | Warned to stay clear of 0b10 Research branches 374 | -10/Exiles | Met EX-DEC 421 | -10/Exiles | Discovered new exit (range 11) 433 | -10/Exiles | Left Exiles lab with AWS/Thermal 433 | -10/Exiles | Entered Mines 439 | -9/Mines | Escorted by a lone wolf Derelict 457 | -9/Mines | Met a Derelict bent on vengeance 459 | -9/Mines | Learned location of Storage (-9) 459 | -9/Mines | Learned Materials emergency access door positions 505 | -9/Mines | Assembled infested the area 510 | -9/Mines | Assisted by a Guerilla fighting off Assembled 552 | -9/Mines | Assisted by bots powering up and referring to "LRC-V3" 584 | -9/Mines | Found the Drone Emporium 668 | -9/Mines | Discovered new exit (range 5) 669 | -9/Mines | Entered Materials 669 | -8/Materials | Evolved 4 slots: Propulsion x2, Utility x2 685 | -8/Materials | Lost 3 allies 1010 | -8/Materials | Identified exit to Factory 1084 | -8/Materials | Entered Factory 1084 | -7/Factory | Evolved 2 slots: Propulsion x1, Utility x1 1101 | -7/Factory | Discovered new exit (range 14) 1396 | -7/Factory | Lost 3 parts (3n) 1406 | -7/Factory | Discovered new exit (range 8) 1697 | -7/Factory | Lost 3 parts (1p2n) 1712 | -7/Factory | Identified exit to Lower Caves 1763 | -7/Factory | Entered another Factory area 1763 | -6/Factory | Evolved 2 slots: Propulsion x1, Utility x1 1793 | -6/Factory | Identified exit to Lower Caves 1991 | -6/Factory | Discovered new exit (range 6) 1993 | -6/Factory | Entered another Factory area 1993 | -5/Factory | Evolved 2 slots: Utility x2 2061 | -5/Factory | Identified exit to Upper Caves 2061 | -5/Factory | Identified exit to Factory 2235 | -5/Factory | Lost 10 parts (1p6n1u2w) 2347 | -5/Factory | Entered another Factory area 2347 | -4/Factory | Evolved 2 slots: Utility x2 2365 | -4/Factory | Identified exit to Upper Caves 2365 | -4/Factory | Identified exit to Extension 2365 | -4/Factory | Identified exit to Armory 2418 | -4/Factory | Identified exit to Research 2418 | -4/Factory | Central database locked down 2494 | -4/Factory | Build established: Wizard-Scout 2672 | -4/Factory | Spotted B-86 Titan 2677 | -4/Factory | Lost 4 parts (1p1n1u1w) 2768 | -4/Factory | Fabricated G-67 Veteran? 2817 | -4/Factory | Fabricated Cloaking Device? 2818 | -4/Factory | Lost 3 allies 2971 | -4/Factory | Core integrity fell below 50% 2984 | -4/Factory | Core integrity fell below 20% 3014 | -4/Factory | Lost 12 parts (1p4n5u2w) 3076 | -4/Factory | Lost 6 parts (1p1n2u2w) 3141 | -4/Factory | Destroyed by P-70 Sage with Tesla Rifle Last Messages --------------- 03045_ Cld. Fission Core destroyed. 03048_ Dropped Adv. Thermal Shield. 03054_ Penetrated by Slug. 03060_ Acquired Imp. Component Analysis Suite. 03063_ Acquired 24 matter. 03078_ Acquired Prototype Slashing Weapon. 03078_ Identified Plasma Sword. 03081_ Triggered Segregator Trap. 03081_ Arcs of energy rise from the floor. 03081_ Imp. Gyrokinetic Inverter blown off. 03081_ Plasma Sword blown off. 03081_ Adv. VSS Leg blown off. 03082_ Acquired Plasma Sword. 03083_ System corrupted: Matter fused (-5). 03084_ Acquired Imp. Gyrokinetic Inverter. 03090_ R-10 Processor collects Adv. VSS Leg. 03099_ YBN JQHGF=B/%Q1F6XRN /P,PL1K& 03115_ U-05 Engineer builds a Wall. 03127_ System corrupted: Matter fused (-9). 03129_ W-44 Eye sends out distress signal. Map ----- +----------------------------------------------------+ | #????????# #???????????????????????????? #?? | | ###??????# #???????????????????????????? #?? | | #?###### #???????????????????????????# #?? | | #? ! ## ##???????????????????????????# #?? | | #?? ## #????????????????????????????# /?? | | #??""" ## #????????????????????????????# #?? | | #??""" ## #????????????????????????????# +?? | | #??""" ## #????????????????????????????# #?? | | #???? ## #???????####+######+#######??# #?? | | #???? ## #???????# ??? #?# | | ########+## ######### ?? #?# | | """""" #?# | | ######## ############ """""" #?# | | #??????# #??????????# ?????? """""" #?# | | #??????# #??????????# w#???T???# """""" #?# | | #??????# #???######## #???????# #?# | | #??????# #???# ######### """""" #?# | | #??????# #???# # # """""" #?# | | #??????# #???# + # """""" #?# | | ########+##### # # """""" #?# | | # # # # #?# | | # # ######+# # """""" #?# | | # # # """ # # """""" ### | | # # # ""R" # # """""" | | # """ """ n# + "" " # # """""" | | # """ """ + # p @; + | | " """ """ # # # # | | # # # # # | | # """ """ # # """ # # ########## | | # """ """ # # """ # # #????????? | | # """ """ # # """ # # #????????? | | # # ^ # # # +????????? | | #########/#### # """ # + #????????? | | #???????# #??# # """ # # #?"""?"""? | | #???????# #??# # """ ######### #?"""?"""? | | #???????# #??# # #???????# #?"""?"""? | | #???????# #??# ########???????# #????????? | | ?????? ? #????????""""??# #????????? | | ???? #????????""""??+ #????????? | | ?? #????????""""??? #????????? | | #????????""""??? #????????? | | #????????""""??? #????????? | | #############+#+#????????""""??? #????????? | | ????????????????????????????????? #????????? | | ?????????????????????????????????? ?????????? | | ?????????????????????????????????? ???????????? | | ????????????????????????????????????????????????? | | ????????????????????????????????????????????????? | | ?????????????????????????????????????????????????? | | ?????????????????????????????????????????????????? | +----------------------------------------------------+ Best States ------------- Heat Dissipation 44 Energy Generation 21 Energy Capacity 350 Matter Stores 300 Matter Capacity 300 Sight Range 22 Terrain Scan Density 10 ECM Strength 2 Cloak Strength 2 Armor Coverage 150 Resistance: TH 30 Evasion (%) 72 Targeting Accuracy 5 Offensive Hacking 30 Defensive Hacking 30 Item Schematics ----------------- Aerolev Unit | -7/Factory | Scanalyzed Med. Laser | -7/Factory | Scanalyzed Transmission Jammer | -7/Factory | Scanalyzed Cmb. Gravmag System | -7/Factory | Hacked Cloaking Device | -6/Factory | Hacked Nuclear Pulse Array | -4/Factory | Hacked Robot Schematics ------------------ None Fabricated ------------ G-67 Veteran | x3 | -4/Factory | Preloaded Alien Tech Used ----------------- None Achievements -------------- Deadly Force Challenges ------------ None Game ------ Seed PlatingFrostThermoblaster Manual? 0 Play Time 01:12:59 Cumulative 30.0 hours Start 2024.04.08 @ 19:57:00 End 2024.04.08 @ 21:09:27 Sessions 1 Manual Loads 0 Difficulty Rogue Special Mode None Game No. 42 Rogue 42 Adventurer 0 Explorer 0 Win Type - Total 0 Types 0/0/0/0/0/0/0/0/0 Lore% 13 Gallery% 31 Achievement% 24 Wizard Run 0 Options --------- Layout 1 ASCII 0 Keyboard 0 Movement Numpad Keybinds 0 Fullscreen 1 Font 24/Crisp Map View 50x35 Zoom Use 0% Tactical HUD 1 Map Filters NONE Filters NONE Steam 1 RUN: a676f2f6-521e-4805-9c86-6732b1a77065